Cogmind - Beta 9.6 @@@ ROGUE MODE // 2020.05.03 @ 16:40:18 Player: Qethsegol Result: Self-destructed Performance ------------- Evolutions (1) 500 Regions Visited (2) 400 Robots Destroyed (29) 145 Value Destroyed (693) 693 Prototype IDs (0) 0 Alien Tech Used (0) 0 Bonus (0) 0 TOTAL SCORE: 1738 Bonus ------- None Cogmind --------- Core Integrity 322/400 Matter 153/300 Energy 100/100 System Corruption 0% Temperature Cool (0) Movement Core (600) Ox11 Location -9/Materials Parts ------- > --- POWER (1) -------- (None) > --- PROPULSION (3) --- (None) > --- UTILITY (3) ------ Improved Heat Sink Large Storage Unit Large Storage Unit > --- WEAPON (2) ------- Light Cannon > --- INVENTORY (16) --- Ion Engine Flight Unit Flight Unit Heat Sink Medium Armor Plating Medium Armor Plating Medium Armor Plating Particle Gun Autogun Autogun Autogun Datajack Peak State ------------ > --- POWER ------------ Light Ion Engine > --- PROPULSION ------- Light Treads Light Treads Flight Unit > --- UTILITY ---------- Improved Heat Sink Large Storage Unit Large Storage Unit > --- WEAPON ----------- Particle Gun Light Cannon > --- INVENTORY -------- Ion Engine Flight Unit Flight Unit Heat Sink Autogun Autogun Autogun Datajack [Rating: 13] Favorites ----------- Power Ion Engine Engine Ion Engine Propulsion Light Treads Treads Light Treads Flight Unit Flight Unit Utility Large Storage Unit Device Improved Heat Sink Storage Large Storage Unit Weapon Particle Gun Energy Gun Particle Gun Energy Cannon Beam Cannon Ballistic Gun Assault Rifle Ballistic Cannon Light Cannon Launcher Grenade Launcher Build | -11 -10 -9 ------- Run | Scr Mat Mat Slots Evolved 2 | . . 2 Power . | . . . Propulsion 1 | . . 1 Utility 1 | . . 1 Weapon . | . . . Parts Attached 29 | 6 20 3 Power 3 | 1 2 . Engine 3 | 1 2 . Core . | . . . Reactor . | . . . Propulsion 4 | 2 1 1 Treads 3 | 2 1 . Leg . | . . . Wheel . | . . . Hover . | . . . Flight 1 | . . 1 Utility 8 | 1 6 1 Device 2 | . 2 . Storage 6 | 1 4 1 Processor . | . . . Hackware . | . . . Protection . | . . . Artifact . | . . . Weapon 14 | 2 11 1 Energy Gun 6 | 1 4 1 Energy Cannon 1 | . 1 . Ballistic Gun 1 | 1 . . Ballistic Cannon 1 | . 1 . Launcher 5 | . 5 . Special Weapon . | . . . Impact Weapon . | . . . Slashing Weapon . | . . . Piercing Weapon . | . . . Special Melee Weapon . | . . . Unidentified Prototypes . | . . . Parts Lost 6 | . 1 5 Power 1 | . . 1 Propulsion 3 | . . 3 Utility . | . . . Weapon 2 | . 1 1 Highest Loss Streak 3 | . 1 3 Average Slot Usage (%) 98 | . 99 91 Engine 13 | . 14 8 Treads 27 | . 27 21 Flight 1 | . . 9 Device 12 | . 13 11 Storage 15 | . 14 22 Energy Gun 10 | . 10 8 Energy Cannon 3 | . 4 . Ballistic Cannon 5 | . 4 11 Launcher 6 | . 7 . Naked Turns . | . . . Heaviest Build 42 | 13 26 42 Greatest Support 40 | 40 40 40 Greatest Overweight (x) 1 | . . 1 Average Overweight (x) . | . . . Largest Inventory Capacity 16 | 6 10 16 Average Capacity 8 | 5 7 16 Most Carried 12 | 6 10 12 Average Carried 7 | 2 7 10 Final Capacity 16 | 6 10 16 Final Carried 12 | 6 10 12 Class Distribution -------------------- 100% | Mutant Dominant Class ---------------- Mutant | -10/Materials Mutant | -9/Materials Resources | -11 -10 -9 ----------- Run | Scr Mat Mat Matter Collected 712 | 281 318 113 Remotely . | . . . Salvage Created 611 | 74 452 85 Parts 42 | . 37 5 Haulers Intercepted 1 | . 1 . Recyclers Shooed . | . . . Parts Field Recycled . | . . . Retrieved Matter . | . . . Parts Self-Destructed . | . . . Prevented . | . . . Kills | -11 -10 -9 ------- Run | Scr Mat Mat Combat Hostiles Destroyed 18 | . 14 4 Guns 4 | . 3 1 Cannons 3 | . . 3 AOE 11 | . 11 . Classes Destroyed 8 | 1 5 2 Worker 1 | . 1 . Builder 3 | . 3 . Hauler 1 | . 1 . Recycler 2 | 1 1 . Operator 1 | . . 1 Watcher 3 | . 3 . Swarmer 3 | . . 3 Grunt 15 | . 14 1 Best Kill Streak 8 | 1 8 5 Combat Bots Only 4 | . 4 4 Max Kills in Single Turn 4 | 1 4 1 Gunslinging . | . . . Exploded 2 | . 2 . Melee . | . . . Uniques/NPCs Destroyed . | . . . Combat | -11 -10 -9 -------- Run | Scr Mat Mat Damage Taken 1003 | . 531 472 Core 195 | . 117 78 Absorbed by Shields . | . . . Core Remaining (%) 76 | 100 53 . Volleys Fired 62 | 7 33 22 Largest 2 | 2 2 2 Hottest 125 | 60 125 100 Shots Fired 100 | 14 58 28 Gun 36 | 14 16 6 Cannon 35 | . 13 22 Launcher 29 | . 29 . Special . | . . . Kinetic 29 | 7 . 22 Thermal 35 | . 29 6 Explosive 29 | . 29 . Electromagnetic 7 | 7 . . Robot Hit Streak 10 | 6 10 3 Robot Miss Streak 4 | 1 2 4 Penetration Max . | . . . Secondary Targets . | . . . Shots Hit Robots 50 | 11 27 12 Core Hits 46 | 2 38 6 Critical Hits . | . . . Critical Kills . | . . . Critical Parts Destroyed . | . . . Melee Attacks . | . . . Impact . | . . . Slashing . | . . . Piercing . | . . . Sneak Attacks . | . . . Combat Hostiles . | . . . Follow-up Attacks . | . . . Damage Inflicted 2148 | 139 1786 223 Guns 364 | 139 182 43 Cannons 283 | . 103 180 Explosions 1501 | . 1501 . Melee . | . . . Ramming . | . . . Kinetic 243 | 63 . 180 Thermal 328 | . 285 43 Explosive 1501 | . 1501 . Electromagnetic 76 | 76 . . Impact . | . . . Slashing . | . . . Piercing . | . . . Highest Corruption . | . . . Average Corruption . | . . . Corruption Purged . | . . . Overload Shots . | . . . Overflow Damage 4 | . 4 . Projectiles . | . . . Explosions 4 | . 4 . Melee . | . . . Knockbacks 2 | . . 2 Impact . | . . . Kinetic 2 | . . 2 Secondary . | . . . Self-Inflicted Damage 8 | . 8 . Shots 1 | . 1 . Rammed . | . . . Targets Rammed . | . . . Kicked . | . . . Crushed . | . . . Highest Temperature 132 | . 132 . Average Temperature 38 | . 38 . Received Heat Transfer 420 | . 282 138 Siege Activations . | . . . Robots Corrupted . | . . . Combat Hostiles . | . . . Parts Fried 1 | 1 . . Impact Corruptions . | . . . Robots Melted . | . . . Combat Hostiles . | . . . Parts Melted . | . . . Heat Transferred 777 | . 666 111 Parts Sabotaged . | . . . Parts Stolen . | . . . Parts Stripped . | . . . Power Chain Reactions . | . . . Missiles Intercepted . | . . . Alert | -11 -10 -9 ------- Run | Scr Mat Mat Peak Influence 256 | 5 256 91 Average Influence 50 | 2 58 21 Maximum Alert Level 1 | . 1 . Low Security (%) 98 | 100 97 100 Level 1 1 | . 2 . Level 2 . | . . . Level 3 . | . . . Level 4 . | . . . Level 5 . | . . . High Security . | . . . Max Security . | . . . Squads Dispatched 5 | . 4 1 Investigation 3 | . 3 . Extermination . | . . . Reinforcement 2 | . 1 1 Assault . | . . . Garrison . | . . . Intercept . | . . . Construction Impeded . | . . . Haulers Reinforced . | . . . Stealth | -11 -10 -9 --------- Run | Scr Mat Mat Distress Signals 1 | . 1 . Communications Jammed . | . . . Distress Signals . | . . . Times Spotted 29 | . 20 9 Peak Tracking Total 4 | . 4 4 Tactical Retreats . | . . . Traps | -11 -10 -9 ------- Run | Scr Mat Mat Traps Triggered 3 | . 3 . Indirectly . | . . . Trap Hack Attempts . | . . . Triggered . | . . . Disarmed . | . . . Reprogrammed . | . . . Reused . | . . . Traps Extracted . | . . . Installed . | . . . Triggered . | . . . Machines | -11 -10 -9 ---------- Run | Scr Mat Mat Machines Disabled 2 | . 2 . Max in Single Turn 1 | . 1 . Machines Sabotaged . | . . . Garrisons Compromised . | . . . Overloaded Fab Kills . | . . . Fab Network Shutdowns . | . . . Hacking | -11 -10 -9 --------- Run | Scr Mat Mat Machines Accessed 5 | . 5 . Terminals 3 | . 3 . Fabricators . | . . . Repair Stations 1 | . 1 . Recycling Units 1 | . 1 . Scanalyzers . | . . . Garrison Access . | . . . Total Hacks 13 | . 13 . Successful 9 | . 9 . Failed 4 | . 4 . Catastrophic 1 | . 1 . Database Lockouts . | . . . Manual 1 | . 1 . Terminals 6 | . 6 . Fabricators . | . . . Repair Stations 5 | . 5 . Recycling Units 2 | . 2 . Scanalyzers . | . . . Garrison Access . | . . . Terminal Hacks 4 | . 4 . Record 2 | . 2 . Robot Analysis 1 | . 1 . Locate Traps 1 | . 1 . Fabricator Hacks . | . . . Repair Station Hacks 4 | . 4 . Scan Component 2 | . 2 . Repair 2 | . 2 . Recycling Unit Hacks 1 | . 1 . Process 1 | . 1 . Scanalyzer . | . . . Garrison Access Hacks . | . . . Unauthorized Hacks . | . . . Terminals . | . . . Fabricators . | . . . Repair Stations . | . . . Recycling Units . | . . . Scanalyzers . | . . . Garrison Access . | . . . Data Cores Recovered . | . . . Used . | . . . Hacking Detections 5 | . 5 . Full Trace Events 1 | . 1 . Feedback Events . | . . . Feedback Blocked . | . . . Robot Schematics Acquired . | . . . Robots Built . | . . . Matter . | . . . Time . | . . . Total Robot Build Rating . | . . . Part Schematics Acquired . | . . . Parts Built . | . . . Matter . | . . . Time . | . . . Total Part Build Rating . | . . . Parts Repaired 2 | . 2 . Time 52 | . 52 . Parts Recycled . | . . . Recycled Matter 140 | . 140 . Retrieved Matter . | . . . Retrieved Components . | . . . Parts Scanalyzed . | . . . Part Schematics Acquired . | . . . Parts Damaged . | . . . Bothacking | -11 -10 -9 ------------ Run | Scr Mat Mat Used RIF Installer . | . . . Robots Hacked . | . . . Non-combat . | . . . Combat . | . . . Robot Hacks Applied . | . . . Relay Couplers Released . | . . . Robots Rewired . | . . . Allies Hacked . | . . . Hacks Repelled . | . . . Allies | -11 -10 -9 -------- Run | Scr Mat Mat Total Allies . | . . . Largest Group . | . . . Highest-Rated Group . | . . . Highest-Rated Ally . | . . . Total Orders . | . . . Ally Attacks . | . . . Total Damage . | . . . Kills . | . . . Allies Corrupted . | . . . Allies Melted . | . . . Intel | -11 -10 -9 ------- Run | Scr Mat Mat Robot Analysis Total 1 | . 1 . Derelict Logs Recovered . | . . . Drone Launches . | . . . Drone Recoveries . | . . . Exploration | -11 -10 -9 ------------- Run | Scr Mat Mat Turns Passed 2151 | 176 1761 214 Spaces Moved 1115 | 90 939 86 Core 3 | 3 . . Treads 1112 | 87 939 86 Legs . | . . . Wheels . | . . . Hover . | . . . Flight . | . . . Fastest Speed 50 | 50 160 160 Average Speed 161 | 156 160 178 Slowest Speed 180 | 160 160 180 Overloaded Moves . | . . . Propulsion Burnouts . | . . . Robots Hopped . | . . . Cave-ins Triggered . | . . . Exploration Rate (%) 31 | 6 81 8 Regions Visited 2 Branch Regions . Pre-discovered Areas . | . . . Known Exits Taken . | . . . Unknown Exits Taken 2 | 1 1 . Scrap Searched . | . . . Spaces Dug . | . . . Terrain Destroyed 150 | . 150 . Melee . | . . . Projectile . | . . . AOE 150 | . 150 . Actions | -11 -10 -9 --------- Run | Scr Mat Mat Total 1371 | 108 1145 118 Wait 107 | . 104 3 Move 1113 | 89 938 86 Hop . | . . . Pick Up 35 | 6 25 4 Fast Attach 12 | 6 6 . Attach 3 | . 1 2 Detach 1 | . 1 . Swap 14 | . 13 1 Drop 24 | . 24 . Fire 62 | 7 33 22 Melee . | . . . Ram . | . . . Kick . | . . . Crush . | . . . Escape Stasis . | . . . Rewire . | . . . Trap . | . . . Miscellaneous . | . . . Route ------- -11/Scrapyard -10/Materials (discovered 4 exits: [*Mat x3] / [*Min]) -9/Materials History --------- Turn | Location | Event 4 | -11/Scrapyard | Discovered new exit (range 16) 177 | -11/Scrapyard | Entered Materials 363 | -10/Materials | Build established: Mutant 442 | -10/Materials | Discovered new exit (range 7) 568 | -10/Materials | Discovered new exit (range 10) 972 | -10/Materials | Discovered new exit (range 7) 1074 | -10/Materials | Repaired Med. Storage Unit 1123 | -10/Materials | Repaired Lgt. Treads 1904 | -10/Materials | Discovered new exit (range 15) 1938 | -10/Materials | Entered another Materials area 1938 | -9/Materials | Evolved 2 slots: Propulsion x1, Utility x1 2145 | -9/Materials | Lost 3 parts (1p1n1w) 2152 | -9/Materials | Self-destructed Last Messages --------------- 02130_ K-01 Serf collects debris. 02132_ G-34 Mercenary destroyed. 02133_ C-30 ARC bursts open, deploying its payload. 02133_ G-47 Trooper unfolds itself. 02133_ G-34 Mercenary unfolds itself. 02133_ R-06 Scavenger collects Lgt. Ion Engine. 02133_ K-01 Serf collects debris. 02134_ Acquired 15 matter. 02135_ K-01 Serf collects debris. 02137_ R-06 Scavenger collects Ion Engine. 02137_ K-01 Serf collects debris. 02138_ K-01 Serf destroyed. 02141_ K-01 Serf collects debris. 02141_ R-06 Scavenger collects Wheel. 02141_ Acquired 18 matter. 02143_ Acquired 42 matter. 02144_ K-01 Serf collects debris. 02145_ Lgt. Treads destroyed. 02148_ G-47 Trooper knocked back. 02149_ Lgt. Treads destroyed. Map ----- +----------------------------------------------------+ | ???????????????????????????????????????????? | | ???????????????????????????????????????????? | | ???????????????????????????????????????????? | | ???????????????????????????????????????????? | | ???????????????????????????????????????????? | | ???????????????????????????????????????????? | | ???????????????????????????????????????????? | | ???????????????????????????????????????????? | | ???????????????????????????????????????????? | | ???????????????????????????????????????????? | | ????????????????? ???????????????????????? | | ???????????????? ???????????????????????? | | ???????????????? #??????????????????????? | | ????????????????# #??????????????????????? | | ????????????????# #??????????????????????? | | ????????????????# %/??????????????????????? | | ????????????????# #??????????????????????? | | ????????????????# #??????????????????????? | | ????????????????# g#??????????????????????? | | ????????????????# g #??????????????????????? | | ????????????????# #??????????????????????? | | ????????????????# gu#??????????????????????? | | ????????????????+ #??????????????????????? | | ????????????????# #####??????????????????? | | ##########??????# ???????????????????? | | # ######## @#??????????????????????? | | # """ # #??????????????????????? | | # """ # = #??????????????????????? | | # """ # / #??????????????????????? | | # r ########??????????????????????? | | # """ # #?????????????????????????????? | | # Y" # ###########???????????????????? | | # """ # # #???????????????????? | | # # # """ #???????????????????? | | ########## # "Y" #???????????????????? | | ?????????# # [! #???????????????????? | | ?????????# + [! """ #???????????????????? | | ?????????# # [! """ #???????????????????? | | ?????????# # """ #???????????????????? | | ?????????# # #???????????????????? | | ??######## ###########???????????????????? | | ??# # #?????????????????????????????? | | ??# """ # #######???????????????????????? | | ??# """ + ????????????????? | | ??# """ # #######???????????????????????? | | ??# """ # #?????????????????????????????? | | ??# # #?????????????????????????????? | | ??############?????????????????????????????? | | ???????????????????????????????????????????? | | ???????????????????????????????????????????? | +----------------------------------------------------+ Best States ------------- Heat Dissipation 42 Energy Generation 10 Energy Capacity 250 Matter Stores 300 Matter Capacity 350 Sight Range 16 Terrain Scan Density 10 Evasion (%) 40 Recoil Reduction 2 Item Schematics ----------------- None Robot Schematics ------------------ None Fabricated ------------ Nothing Alien Tech Used ----------------- None Achievements -------------- None Challenges ------------ None Game ------ Seed AutogunBackupBattery Manual? 0 Play Time 00:18:49 Cumulative 5.4 hours Start 2020.05.03 @ 16:13:40 End 2020.05.03 @ 16:40:18 Sessions 3 Manual Loads 0 Difficulty Rogue Special Mode None Game No. 5 Rogue 5 Adventurer 0 Explorer 0 Win Type - Total 0 Types 0/0/0/0/0/0/0 Lore% 4 Gallery% 9 Achievement% 11 Wizard Run 0 Options --------- ASCII 0 Keyboard 1 Movement Numpad Keybinds 0 Fullscreen 1 Font 18/SmallcapsGlow Map View 76x50 Tactical HUD 1 Map Filters NONE Filters NONE Steam 1 RUN: e60fc6ae-f7c5-494d-80e1-325ce265a864